[Event "Live Chess"]
[Site "Chess.com"]
[Date "2023.05.21"]
[Round "-"]
[White "LutherSullivan"]
[Black "alanmike75"]
[Result "0-1"]
[WhiteElo "2102"]
[BlackElo "1592"]
[TimeControl "300"]
[EndTime "18:33:53 PDT"]
[Termination "alanmike75 won by checkmate"]

1. e4 {[%clk 0:04:58]} 1... e5 {[%clk 0:04:58.3]} 2. Nf3 {[%clk 0:04:57.5]} 2...
Nc6 {[%clk 0:04:56]} 3. d4 {[%clk 0:04:57.1]} 3... exd4 {[%clk 0:04:54.1]} 4.
Bc4 {[%clk 0:04:56.6]} 4... Nf6 {[%clk 0:04:44.9]} 5. O-O {[%clk 0:04:55.1]}
5... d6 {[%clk 0:04:40.8]} 6. Nxd4 {[%clk 0:04:52.4]} 6... Be7 {[%clk 0:04:39]}
7. Nc3 {[%clk 0:04:49.3]} 7... O-O {[%clk 0:04:37.7]} 8. h3 {[%clk 0:04:44.9]}
8... Ne5 {[%clk 0:04:34]} 9. Be2 {[%clk 0:04:41.3]} 9... c5 {[%clk 0:04:27.9]}
10. Nf5 {[%clk 0:04:36.8]} 10... Bxf5 {[%clk 0:04:25.6]} 11. exf5 {[%clk
0:04:36.3]} 11... d5 {[%clk 0:04:19.8]} 12. f4 {[%clk 0:04:27.1]} 12... Nc6
{[%clk 0:04:13.5]} 13. Bf3 {[%clk 0:04:25.7]} 13... d4 {[%clk 0:04:10.5]} 14.
Ne4 {[%clk 0:04:24.8]} 14... Nxe4 {[%clk 0:04:08.7]} 15. Bxe4 {[%clk 0:04:24.2]}
15... Bf6 {[%clk 0:04:07.5]} 16. g4 {[%clk 0:04:19.1]} 16... Re8 {[%clk
0:03:39.7]} 17. Qf3 {[%clk 0:04:16.4]} 17... Rc8 {[%clk 0:03:26.8]} 18. Bd2
{[%clk 0:03:52]} 18... d3 {[%clk 0:03:10.2]} 19. c3 {[%clk 0:03:48]} 19... c4
{[%clk 0:03:06.1]} 20. Be3 {[%clk 0:03:42.7]} 20... h6 {[%clk 0:02:38.6]} 21.
Rae1 {[%clk 0:03:31.5]} 21... Bh4 {[%clk 0:02:26.3]} 22. Rd1 {[%clk 0:03:23.1]}
22... Qe7 {[%clk 0:02:18.2]} 23. Bxc6 {[%clk 0:03:19.9]} 23... Rxc6 {[%clk
0:02:09]} 24. Bd4 {[%clk 0:03:17.3]} 24... Qe2 {[%clk 0:02:04.5]} 25. Be5 {[%clk
0:02:58.2]} 25... Qxf3 {[%clk 0:01:55]} 26. Rxf3 {[%clk 0:02:55.4]} 26... Be7
{[%clk 0:01:46.2]} 27. Bd4 {[%clk 0:02:43.9]} 27... Bc5 {[%clk 0:01:44]} 28.
Bxc5 {[%clk 0:02:41.5]} 28... Rxc5 {[%clk 0:01:42.2]} 29. Rf2 {[%clk 0:02:35.1]}
29... Rc7 {[%clk 0:01:35.6]} 30. Kf1 {[%clk 0:02:31.1]} 30... Rce7 {[%clk
0:01:33.8]} 31. b3 {[%clk 0:02:15.5]} 31... b5 {[%clk 0:01:31.8]} 32. a4 {[%clk
0:02:13.5]} 32... a6 {[%clk 0:01:29.5]} 33. axb5 {[%clk 0:02:07.2]} 33... axb5
{[%clk 0:01:27.6]} 34. bxc4 {[%clk 0:02:05.7]} 34... bxc4 {[%clk 0:01:26.1]} 35.
Rb1 {[%clk 0:01:46.3]} 35... Re2 {[%clk 0:01:13.4]} 36. Rb4 {[%clk 0:01:24.9]}
36... d2 {[%clk 0:00:55.2]} 37. Rb1 {[%clk 0:01:19.7]} 37... Re1+ {[%clk
0:00:53.5]} 38. Kg2 {[%clk 0:01:17.6]} 38... Rxb1 {[%clk 0:00:46.2]} 39. Rxd2
{[%clk 0:01:16.1]} 39... Rc1 {[%clk 0:00:45.1]} 40. g5 {[%clk 0:01:13.5]} 40...
hxg5 {[%clk 0:00:42.2]} 41. fxg5 {[%clk 0:01:12.7]} 41... Rxc3 {[%clk
0:00:40.9]} 42. g6 {[%clk 0:01:10]} 42... fxg6 {[%clk 0:00:39]} 43. fxg6 {[%clk
0:01:09.6]} 43... Rd3 {[%clk 0:00:37.6]} 44. Ra2 {[%clk 0:01:06.3]} 44... Rd6
{[%clk 0:00:33.1]} 45. Kg3 {[%clk 0:01:03.5]} 45... Rxg6+ {[%clk 0:00:31.7]} 46.
Kh4 {[%clk 0:01:02.9]} 46... Rc8 {[%clk 0:00:30.3]} 47. Ra5 {[%clk 0:01:01]}
47... c3 {[%clk 0:00:28.3]} 48. Rc5 {[%clk 0:00:57.5]} 48... Rh6+ {[%clk
0:00:21.8]} 49. Kg4 {[%clk 0:00:55.4]} 49... Rxc5 {[%clk 0:00:19.6]} 50. h4
{[%clk 0:00:54]} 50... c2 {[%clk 0:00:18.2]} 51. Kg3 {[%clk 0:00:53.6]} 51...
c1=Q {[%clk 0:00:16.4]} 52. Kg2 {[%clk 0:00:53.3]} 52... Qd2+ {[%clk 0:00:15]}
53. Kf1 {[%clk 0:00:52]} 53... Rc1# {[%clk 0:00:13.5]} 0-1

[Event "Live Chess"]
[Site "Chess.com"]
[Date "2023.05.21"]
[Round "-"]
[White "ViktorTheCoolBoy"]
[Black "Tilbs_12"]
[Result "1/2-1/2"]
[WhiteElo "2512"]
[BlackElo "1551"]
[TimeControl "300"]
[EndTime "18:34:08 PDT"]
[Termination "Game drawn - insufficient material"]

1. f4 {[%clk 0:04:55.9]} 1... c5 {[%clk 0:04:56.5]} 2. Nf3 {[%clk 0:04:53.8]}
2... Nc6 {[%clk 0:04:52.7]} 3. e4 {[%clk 0:04:51.9]} 3... d5 {[%clk 0:04:47.9]}
4. Nc3 {[%clk 0:04:49.2]} 4... d4 {[%clk 0:04:44]} 5. Ne2 {[%clk 0:04:45.2]}
5... Bg4 {[%clk 0:04:42.1]} 6. Ng3 {[%clk 0:04:43.4]} 6... e6 {[%clk 0:04:37.6]}
7. Bb5 {[%clk 0:04:41]} 7... Nf6 {[%clk 0:04:26.9]} 8. O-O {[%clk 0:04:37.3]}
8... Be7 {[%clk 0:04:19.9]} 9. Qe1 {[%clk 0:04:33.3]} 9... Bxf3 {[%clk
0:04:18.2]} 10. Rxf3 {[%clk 0:04:31.9]} 10... Qb6 {[%clk 0:04:15.6]} 11. Bc4
{[%clk 0:04:24]} 11... Na5 {[%clk 0:04:10.1]} 12. Bf1 {[%clk 0:04:22]} 12... c4
{[%clk 0:04:06.8]} 13. Kh1 {[%clk 0:04:18.5]} 13... d3 {[%clk 0:04:02.8]} 14.
cxd3 {[%clk 0:04:15.7]} 14... cxd3 {[%clk 0:04:01.8]} 15. Bxd3 {[%clk
0:04:11.1]} 15... Rd8 {[%clk 0:03:58.3]} 16. Bc2 {[%clk 0:04:06.6]} 16... O-O
{[%clk 0:03:55.1]} 17. b3 {[%clk 0:04:01.1]} 17... Nc6 {[%clk 0:03:53.4]} 18.
Bb2 {[%clk 0:03:57.5]} 18... Nd4 {[%clk 0:03:52.1]} 19. Bxd4 {[%clk 0:03:51.4]}
19... Rxd4 {[%clk 0:03:46.1]} 20. d3 {[%clk 0:03:45]} 20... Bb4 {[%clk 0:03:41]}
21. Qe2 {[%clk 0:03:41.8]} 21... Rc8 {[%clk 0:03:31.3]} 22. Rff1 {[%clk
0:03:37.8]} 22... Qc6 {[%clk 0:03:21.5]} 23. Rfc1 {[%clk 0:03:34.3]} 23... Ba3
{[%clk 0:03:20.4]} 24. Qe3 {[%clk 0:03:30.7]} 24... Rd7 {[%clk 0:03:08.7]} 25.
Ne2 {[%clk 0:03:21.5]} 25... Bxc1 {[%clk 0:03:05.9]} 26. Rxc1 {[%clk 0:03:21.4]}
26... Qb6 {[%clk 0:02:58.8]} 27. Qxb6 {[%clk 0:03:18.7]} 27... axb6 {[%clk
0:02:58]} 28. Bb1 {[%clk 0:03:15.8]} 28... Rxc1+ {[%clk 0:02:56.2]} 29. Nxc1
{[%clk 0:03:15.7]} 29... Rc7 {[%clk 0:02:54.7]} 30. Ne2 {[%clk 0:03:14.4]} 30...
Ng4 {[%clk 0:02:51.7]} 31. Kg1 {[%clk 0:03:12.4]} 31... Ne3 {[%clk 0:02:49.4]}
32. Kf2 {[%clk 0:03:09.4]} 32... Nd1+ {[%clk 0:02:47.7]} 33. Ke1 {[%clk
0:03:07.4]} 33... Nc3 {[%clk 0:02:46]} 34. Nxc3 {[%clk 0:03:05.4]} 34... Rxc3
{[%clk 0:02:45]} 35. Kd2 {[%clk 0:03:04.9]} 35... Rc6 {[%clk 0:02:41.6]} 36. a4
{[%clk 0:03:02.1]} 36... Kf8 {[%clk 0:02:38.3]} 37. b4 {[%clk 0:03:00.6]} 37...
Ke7 {[%clk 0:02:37]} 38. Ba2 {[%clk 0:02:59.3]} 38... f6 {[%clk 0:02:27.6]} 39.
d4 {[%clk 0:02:57.9]} 39... Rc8 {[%clk 0:02:07.8]} 40. d5 {[%clk 0:02:55.2]}
40... Rd8 {[%clk 0:02:01]} 41. Ke3 {[%clk 0:02:49.9]} 41... exd5 {[%clk
0:01:59.7]} 42. Bxd5 {[%clk 0:02:48.1]} 42... Ra8 {[%clk 0:01:51.7]} 43. Bb3
{[%clk 0:02:46.3]} 43... b5 {[%clk 0:01:46.3]} 44. a5 {[%clk 0:02:44.2]} 44...
b6 {[%clk 0:01:42.9]} 45. axb6 {[%clk 0:02:43.2]} 45... Ra6 {[%clk 0:01:29.4]}
46. Kd4 {[%clk 0:02:41]} 46... Rxb6 {[%clk 0:01:28.3]} 47. Kc5 {[%clk
0:02:40.4]} 47... Rb8 {[%clk 0:01:27.2]} 48. Bd5 {[%clk 0:02:39.2]} 48... g6
{[%clk 0:01:22.4]} 49. Bc6 {[%clk 0:02:38]} 49... f5 {[%clk 0:01:12.1]} 50. exf5
{[%clk 0:02:36.7]} 50... gxf5 {[%clk 0:01:10.8]} 51. Bxb5 {[%clk 0:02:36.2]}
51... Rg8 {[%clk 0:01:04.5]} 52. Bc6 {[%clk 0:02:33.3]} 52... Rg6 {[%clk
0:01:00.7]} 53. b5 {[%clk 0:02:30.9]} 53... Kd8 {[%clk 0:00:59.5]} 54. b6 {[%clk
0:02:30.1]} 54... Kc8 {[%clk 0:00:58]} 55. g3 {[%clk 0:02:25.6]} 55... h5 {[%clk
0:00:55.4]} 56. Bf3 {[%clk 0:02:20]} 56... h4 {[%clk 0:00:49.4]} 57. gxh4 {[%clk
0:02:18.4]} 57... Rg1 {[%clk 0:00:44.8]} 58. h5 {[%clk 0:02:17.5]} 58... Rf1
{[%clk 0:00:43.4]} 59. Bd5 {[%clk 0:02:15.6]} 59... Rxf4 {[%clk 0:00:41.3]} 60.
Bf7 {[%clk 0:02:02.1]} 60... Rh4 {[%clk 0:00:38.4]} 61. Kd5 {[%clk 0:02:00.3]}
61... Kb7 {[%clk 0:00:35.5]} 62. Ke5 {[%clk 0:01:59.1]} 62... Kxb6 {[%clk
0:00:34.4]} 63. Bg6 {[%clk 0:01:57.6]} 63... f4 {[%clk 0:00:32.1]} 64. Ke4
{[%clk 0:01:56.3]} 64... Kc5 {[%clk 0:00:29.7]} 65. Kf3 {[%clk 0:01:55.2]} 65...
Kd4 {[%clk 0:00:28.3]} 66. Bf5 {[%clk 0:01:53.3]} 66... Ke5 {[%clk 0:00:27]} 67.
Bg4 {[%clk 0:01:51.8]} 67... Rxh2 {[%clk 0:00:23.7]} 68. Bc8 {[%clk 0:01:44.1]}
68... Rxh5 {[%clk 0:00:19.2]} 69. Bd7 {[%clk 0:01:42.2]} 69... Rh1 {[%clk
0:00:17.7]} 70. Bc8 {[%clk 0:01:40.7]} 70... Rh3+ {[%clk 0:00:16.3]} 71. Bxh3
{[%clk 0:01:38.4]} 71... Kd4 {[%clk 0:00:06.4]} 72. Bf5 {[%clk 0:01:36]} 72...
Kc3 {[%clk 0:00:05.4]} 73. Be4 {[%clk 0:01:35.9]} 73... Kc4 {[%clk 0:00:04.8]}
74. Bf5 {[%clk 0:01:33.4]} 74... Kc5 {[%clk 0:00:04.4]} 75. Bg6 {[%clk
0:01:33.3]} 75... Kd4 {[%clk 0:00:04.1]} 76. Bh7 {[%clk 0:01:33.2]} 76... Kc5
{[%clk 0:00:03.7]} 77. Bg6 {[%clk 0:01:32.9]} 77... Kd4 {[%clk 0:00:03.6]} 78.
Bh7 {[%clk 0:01:32.7]} 78... Kc5 {[%clk 0:00:03.5]} 79. Bf5 {[%clk 0:01:32.3]}
79... Kd4 {[%clk 0:00:03.4]} 80. Bd3 {[%clk 0:01:32]} 80... Kc5 {[%clk
0:00:03.3]} 81. Be4 {[%clk 0:01:30.9]} 81... Kd4 {[%clk 0:00:03.2]} 82. Kxf4
{[%clk 0:01:30.4]} 1/2-1/2

[Event "Live Chess"]
[Site "Chess.com"]
[Date "2023.05.21"]
[Round "-"]
[White "Olisingapore"]
[Black "worldchessleaguelive"]
[Result "1-0"]
[WhiteElo "1802"]
[BlackElo "1394"]
[TimeControl "300"]
[EndTime "18:34:16 PDT"]
[Termination "Olisingapore won by checkmate"]

1. d4 {[%clk 0:04:59.6]} 1... d5 {[%clk 0:04:58.8]} 2. c4 {[%clk 0:04:58.3]}
2... dxc4 {[%clk 0:04:57.3]} 3. Nf3 {[%clk 0:04:57.6]} 3... Nf6 {[%clk 0:04:56]}
4. e3 {[%clk 0:04:57.3]} 4... e6 {[%clk 0:04:54.6]} 5. Bxc4 {[%clk 0:04:56.8]}
5... Be7 {[%clk 0:04:54.2]} 6. O-O {[%clk 0:04:55.7]} 6... O-O {[%clk
0:04:53.9]} 7. Nc3 {[%clk 0:04:52.4]} 7... a6 {[%clk 0:04:53.5]} 8. Be2 {[%clk
0:04:50.7]} 8... b5 {[%clk 0:04:53.1]} 9. Ne5 {[%clk 0:04:49.8]} 9... Bb7 {[%clk
0:04:51.1]} 10. Bf3 {[%clk 0:04:49.4]} 10... Bxf3 {[%clk 0:04:49]} 11. Qxf3
{[%clk 0:04:49.3]} 11... c6 {[%clk 0:04:45.1]} 12. a3 {[%clk 0:04:45]} 12... Qc8
{[%clk 0:04:41.6]} 13. b4 {[%clk 0:04:34.4]} 13... Nd5 {[%clk 0:04:40.3]} 14.
Nxd5 {[%clk 0:04:33.3]} 14... cxd5 {[%clk 0:04:38.1]} 15. e4 {[%clk 0:04:21.5]}
15... dxe4 {[%clk 0:04:35.6]} 16. Qxe4 {[%clk 0:04:21.4]} 16... Nd7 {[%clk
0:04:34.3]} 17. Nxd7 {[%clk 0:04:14.7]} 17... Qxd7 {[%clk 0:04:33.4]} 18. Qg4
{[%clk 0:04:07.9]} 18... Bf6 {[%clk 0:04:32]} 19. Rd1 {[%clk 0:04:04]} 19...
Rfd8 {[%clk 0:04:26.7]} 20. Bb2 {[%clk 0:03:56.9]} 20... Rac8 {[%clk 0:04:23.9]}
21. Rd3 {[%clk 0:03:39.2]} 21... Rc4 {[%clk 0:04:16.4]} 22. Rad1 {[%clk
0:03:37.3]} 22... e5 {[%clk 0:03:55.9]} 23. Qxd7 {[%clk 0:03:31.9]} 23... Rxd7
{[%clk 0:03:54.4]} 24. dxe5 {[%clk 0:03:31.5]} 24... Rxd3 {[%clk 0:03:49.3]} 25.
Rxd3 {[%clk 0:03:29.7]} 25... Be7 {[%clk 0:03:36.7]} 26. Rd7 {[%clk 0:03:20.5]}
26... Rc2 {[%clk 0:03:27.6]} 27. Rxe7 {[%clk 0:03:16.3]} 27... Rxb2 {[%clk
0:03:26.7]} 28. Re8# {[%clk 0:03:15.3]} 1-0

[Event "Live Chess"]
[Site "Chess.com"]
[Date "2023.05.21"]
[Round "-"]
[White "nigelst"]
[Black "LanceMaster23"]
[Result "0-1"]
[WhiteElo "1762"]
[BlackElo "1946"]
[TimeControl "300"]
[EndTime "18:34:44 PDT"]
[Termination "LanceMaster23 won by checkmate"]

1. e4 {[%clk 0:04:57.9]} 1... c5 {[%clk 0:04:58.8]} 2. Nf3 {[%clk 0:04:56.7]}
2... Nc6 {[%clk 0:04:58.3]} 3. Bb5 {[%clk 0:04:55.5]} 3... Qc7 {[%clk
0:04:57.8]} 4. c3 {[%clk 0:04:53.4]} 4... d6 {[%clk 0:04:52.6]} 5. d4 {[%clk
0:04:52.1]} 5... cxd4 {[%clk 0:04:52.5]} 6. cxd4 {[%clk 0:04:51.3]} 6... Bd7
{[%clk 0:04:51.9]} 7. O-O {[%clk 0:04:48.9]} 7... a6 {[%clk 0:04:48.4]} 8. Bd3
{[%clk 0:04:46.3]} 8... Nf6 {[%clk 0:04:44.5]} 9. Nc3 {[%clk 0:04:43.7]} 9... e6
{[%clk 0:04:40.8]} 10. Qe2 {[%clk 0:04:42.6]} 10... Be7 {[%clk 0:04:37.7]} 11.
Bg5 {[%clk 0:04:41]} 11... h6 {[%clk 0:04:36.6]} 12. Bh4 {[%clk 0:04:39.7]}
12... O-O {[%clk 0:04:34.9]} 13. e5 {[%clk 0:04:30]} 13... dxe5 {[%clk 0:04:28]}
14. dxe5 {[%clk 0:04:28.9]} 14... Nd5 {[%clk 0:04:24.3]} 15. Nxd5 {[%clk
0:04:25.9]} 15... exd5 {[%clk 0:04:23.5]} 16. Bxe7 {[%clk 0:04:23.3]} 16... Nxe7
{[%clk 0:04:23.4]} 17. Rac1 {[%clk 0:04:19.3]} 17... Qa5 {[%clk 0:04:15.4]} 18.
Bb1 {[%clk 0:04:16.1]} 18... Rac8 {[%clk 0:03:55.5]} 19. Qd3 {[%clk 0:04:14.3]}
19... Bf5 {[%clk 0:03:52]} 20. Qd2 {[%clk 0:04:07.5]} 20... Bxb1 {[%clk
0:03:47.1]} 21. Qxa5 {[%clk 0:04:02.8]} 21... Bd3 {[%clk 0:03:25.2]} 22. Qd2
{[%clk 0:03:58.1]} 22... Bxf1 {[%clk 0:03:18.8]} 23. Rxf1 {[%clk 0:03:55.7]}
23... Rc5 {[%clk 0:03:10.1]} 24. Nd4 {[%clk 0:03:53.5]} 24... Rfc8 {[%clk
0:03:08.5]} 25. e6 {[%clk 0:03:51.8]} 25... fxe6 {[%clk 0:02:57.2]} 26. Nxe6
{[%clk 0:03:50.4]} 26... R5c6 {[%clk 0:02:42]} 27. Nd4 {[%clk 0:03:44.9]} 27...
Rc4 {[%clk 0:02:30.5]} 28. Re1 {[%clk 0:03:40.7]} 28... R8c7 {[%clk 0:01:47.5]}
29. Ne6 {[%clk 0:03:30.6]} 29... Rd7 {[%clk 0:01:26.5]} 30. Rc1 {[%clk
0:03:20.1]} 30... Rc6 {[%clk 0:01:22.9]} 31. Rxc6 {[%clk 0:03:17.2]} 31... bxc6
{[%clk 0:01:22.6]} 32. Qd4 {[%clk 0:03:13.7]} 32... Nf5 {[%clk 0:01:12.7]} 33.
Qe5 {[%clk 0:03:07.4]} 33... g6 {[%clk 0:01:06.4]} 34. Qf6 {[%clk 0:02:59.1]}
34... Re7 {[%clk 0:00:58.4]} 35. Qxg6+ {[%clk 0:02:55.1]} 35... Ng7 {[%clk
0:00:57.6]} 36. Nxg7 {[%clk 0:02:50.8]} 36... Re1# {[%clk 0:00:56.5]} 0-1

[Event "Live Chess"]
[Site "Chess.com"]
[Date "2023.05.21"]
[Round "-"]
[White "Cimon"]
[Black "Singapourfeuj"]
[Result "0-1"]
[WhiteElo "1850"]
[BlackElo "2165"]
[TimeControl "300"]
[EndTime "18:34:47 PDT"]
[Termination "Singapourfeuj won on time"]

1. Nf3 {[%clk 0:04:58.2]} 1... Nf6 {[%clk 0:04:58.8]} 2. c4 {[%clk 0:04:56.8]}
2... g6 {[%clk 0:04:57.8]} 3. d4 {[%clk 0:04:55.1]} 3... Bg7 {[%clk 0:04:57.1]}
4. g3 {[%clk 0:04:53.7]} 4... O-O {[%clk 0:04:56]} 5. Bg2 {[%clk 0:04:52.3]}
5... d6 {[%clk 0:04:55.1]} 6. O-O {[%clk 0:04:50.6]} 6... a6 {[%clk 0:04:54.5]}
7. Nc3 {[%clk 0:04:49]} 7... Nbd7 {[%clk 0:04:53.8]} 8. e4 {[%clk 0:04:46.1]}
8... e5 {[%clk 0:04:52.6]} 9. d5 {[%clk 0:04:44.8]} 9... Rb8 {[%clk 0:04:51.3]}
10. Qc2 {[%clk 0:04:30.4]} 10... h6 {[%clk 0:04:49.4]} 11. b4 {[%clk 0:04:25.7]}
11... b5 {[%clk 0:04:46.4]} 12. cxb5 {[%clk 0:04:21]} 12... axb5 {[%clk
0:04:45.6]} 13. h3 {[%clk 0:04:06.4]} 13... Nh7 {[%clk 0:04:40.1]} 14. Qe2
{[%clk 0:03:57.8]} 14... f5 {[%clk 0:04:35.2]} 15. Nd2 {[%clk 0:03:54.2]} 15...
Ndf6 {[%clk 0:04:27.9]} 16. f3 {[%clk 0:03:47.4]} 16... Bd7 {[%clk 0:04:25.2]}
17. Nb3 {[%clk 0:03:38.3]} 17... Ng5 {[%clk 0:04:18.6]} 18. h4 {[%clk
0:03:34.2]} 18... Nf7 {[%clk 0:04:17.4]} 19. Na5 {[%clk 0:03:28]} 19... Qe8
{[%clk 0:04:15.1]} 20. Bd2 {[%clk 0:03:10.9]} 20... g5 {[%clk 0:04:13.9]} 21.
hxg5 {[%clk 0:03:01.7]} 21... Nxg5 {[%clk 0:04:12.4]} 22. Rac1 {[%clk
0:02:43.1]} 22... Qh5 {[%clk 0:04:09.5]} 23. Nc6 {[%clk 0:02:24.3]} 23... Bxc6
{[%clk 0:04:00.7]} 24. dxc6 {[%clk 0:02:22.1]} 24... fxe4 {[%clk 0:03:59.4]} 25.
Bxg5 {[%clk 0:02:09]} 25... Qxg5 {[%clk 0:03:52.3]} 26. fxe4 {[%clk 0:01:58.7]}
26... Qxg3 {[%clk 0:03:50.7]} 27. Rf3 {[%clk 0:01:50.1]} 27... Qg5 {[%clk
0:03:49.3]} 28. Rcf1 {[%clk 0:01:44]} 28... Nh5 {[%clk 0:03:48.1]} 29. Rxf8+
{[%clk 0:01:36.5]} 29... Rxf8 {[%clk 0:03:46.6]} 30. Rxf8+ {[%clk 0:01:33.1]}
30... Bxf8 {[%clk 0:03:44.6]} 31. Nd5 {[%clk 0:01:23.3]} 31... Nf4 {[%clk
0:03:39.4]} 32. Nxf4 {[%clk 0:01:10.2]} 32... exf4 {[%clk 0:03:38.5]} 33. Qf3
{[%clk 0:00:57.6]} 33... Bg7 {[%clk 0:03:36.1]} 34. Kf2 {[%clk 0:00:46.7]} 34...
Be5 {[%clk 0:03:30.4]} 35. Ke2 {[%clk 0:00:41.5]} 35... Qg3 {[%clk 0:03:27.7]}
36. Bh3 {[%clk 0:00:34]} 36... Qxf3+ {[%clk 0:03:21.8]} 37. Kxf3 {[%clk
0:00:32.6]} 37... Kg7 {[%clk 0:03:19.6]} 38. Bc8 {[%clk 0:00:27.9]} 38... Kf6
{[%clk 0:03:14.2]} 39. Ba6 {[%clk 0:00:25.9]} 39... Kg5 {[%clk 0:03:12.5]} 40.
Bxb5 {[%clk 0:00:24.4]} 40... Bc3 {[%clk 0:03:11.4]} 41. Bf1 {[%clk 0:00:20.1]}
41... Bxb4 {[%clk 0:03:10.1]} 42. a4 {[%clk 0:00:19]} 42... h5 {[%clk
0:03:08.7]} 43. Bh3 {[%clk 0:00:17.5]} 43... h4 {[%clk 0:03:06.7]} 44. Be6
{[%clk 0:00:16.2]} 44... Bd2 {[%clk 0:03:05.4]} 45. Bf5 {[%clk 0:00:14.9]} 45...
d5 {[%clk 0:03:01.1]} 46. Be6 {[%clk 0:00:12.4]} 46... d4 {[%clk 0:02:59.2]} 47.
Bd5 {[%clk 0:00:10.5]} 47... Bb4 {[%clk 0:02:56.7]} 48. Bc4 {[%clk 0:00:09.4]}
48... h3 {[%clk 0:02:55.3]} 49. Bf1 {[%clk 0:00:07.9]} 49... h2 {[%clk
0:02:52.7]} 50. Kg2 {[%clk 0:00:06.3]} 50... f3+ {[%clk 0:02:51.9]} 51. Kxh2
{[%clk 0:00:05.2]} 51... Kf4 {[%clk 0:02:51.3]} 52. Kg1 {[%clk 0:00:03.5]} 52...
Kxe4 {[%clk 0:02:50.1]} 53. Kf2 {[%clk 0:00:02.4]} 53... Bc5 {[%clk 0:02:47.7]}
54. Ke1 {[%clk 0:00:00.8]} 54... Ke3 {[%clk 0:02:46.6]} 0-1

[Event "Live Chess"]
[Site "Chess.com"]
[Date "2023.05.21"]
[Round "-"]
[White "GEMdzq"]
[Black "GMHarry-youtube"]
[Result "1-0"]
[WhiteElo "2253"]
[BlackElo "2053"]
[TimeControl "300"]
[EndTime "18:35:32 PDT"]
[Termination "GEMdzq won by checkmate"]

1. e4 {[%clk 0:04:57.7]} 1... c5 {[%clk 0:04:57.1]} 2. d4 {[%clk 0:04:56.2]}
2... cxd4 {[%clk 0:04:55.1]} 3. c3 {[%clk 0:04:55.7]} 3... dxc3 {[%clk 0:04:55]}
4. Nxc3 {[%clk 0:04:55]} 4... Nc6 {[%clk 0:04:54.4]} 5. Bc4 {[%clk 0:04:54.3]}
5... e6 {[%clk 0:04:53.9]} 6. Nf3 {[%clk 0:04:53.5]} 6... Bb4 {[%clk 0:04:52.5]}
7. Qd3 {[%clk 0:04:52.6]} 7... Nge7 {[%clk 0:04:48.9]} 8. O-O {[%clk 0:04:51.3]}
8... O-O {[%clk 0:04:48.1]} 9. Rd1 {[%clk 0:04:49.8]} 9... Bxc3 {[%clk
0:04:40.4]} 10. Qxc3 {[%clk 0:04:48.3]} 10... d5 {[%clk 0:04:37.8]} 11. exd5
{[%clk 0:04:35.3]} 11... exd5 {[%clk 0:04:32.9]} 12. Bg5 {[%clk 0:04:33]} 12...
f6 {[%clk 0:04:29.4]} 13. Bf4 {[%clk 0:04:23.8]} 13... Be6 {[%clk 0:04:28.1]}
14. Bb3 {[%clk 0:04:14.3]} 14... Bf7 {[%clk 0:04:22.6]} 15. Re1 {[%clk
0:03:54.2]} 15... Ng6 {[%clk 0:04:17.8]} 16. Bg3 {[%clk 0:03:49.3]} 16... d4
{[%clk 0:04:17.2]} 17. Qd3 {[%clk 0:03:39.9]} 17... Bxb3 {[%clk 0:04:12.8]} 18.
Qxb3+ {[%clk 0:03:38.6]} 18... Kh8 {[%clk 0:04:10.5]} 19. Rad1 {[%clk
0:03:37.6]} 19... Qb6 {[%clk 0:03:56.9]} 20. h4 {[%clk 0:03:08.7]} 20... Nge5
{[%clk 0:03:50.3]} 21. Nxd4 {[%clk 0:02:57]} 21... Nxd4 {[%clk 0:03:45.2]} 22.
Qxb6 {[%clk 0:02:55.7]} 22... Ndf3+ {[%clk 0:03:40]} 23. gxf3 {[%clk 0:02:53.8]}
23... Nxf3+ {[%clk 0:03:38.4]} 24. Kf1 {[%clk 0:02:43]} 24... axb6 {[%clk
0:03:36.2]} 25. Re3 {[%clk 0:02:42.2]} 25... Ne5 {[%clk 0:03:33.6]} 26. Bxe5
{[%clk 0:02:30.1]} 26... fxe5 {[%clk 0:03:33.5]} 27. a3 {[%clk 0:02:28.9]} 27...
Rae8 {[%clk 0:03:26.3]} 28. Rd6 {[%clk 0:02:23.6]} 28... Rf6 {[%clk 0:03:24.5]}
29. Rxe5 {[%clk 0:02:22.6]} 29... Ref8 {[%clk 0:03:21.3]} 30. Rxf6 {[%clk
0:02:19.1]} 30... gxf6 {[%clk 0:03:20]} 31. Re7 {[%clk 0:02:15.6]} 31... f5
{[%clk 0:03:04.1]} 32. Rxb7 {[%clk 0:02:13.7]} 32... Rf6 {[%clk 0:03:03.5]} 33.
Kg2 {[%clk 0:02:09]} 33... Rh6 {[%clk 0:03:01.5]} 34. Kg3 {[%clk 0:02:07.8]}
34... Rg6+ {[%clk 0:03:00.5]} 35. Kf4 {[%clk 0:02:00.1]} 35... Rg2 {[%clk
0:02:53.8]} 36. h5 {[%clk 0:01:48.4]} 36... Rxf2+ {[%clk 0:02:51.9]} 37. Kg5
{[%clk 0:01:46.6]} 37... Rxb2 {[%clk 0:02:46.4]} 38. h6 {[%clk 0:01:45.4]} 38...
Rg2+ {[%clk 0:02:39.3]} 39. Kxf5 {[%clk 0:01:41.4]} 39... Rf2+ {[%clk
0:02:26.5]} 40. Ke5 {[%clk 0:01:33.5]} 40... Re2+ {[%clk 0:02:23.4]} 41. Kd5
{[%clk 0:01:32.6]} 41... Kg8 {[%clk 0:02:05.6]} 42. Rxb6 {[%clk 0:01:25.1]}
42... Kf7 {[%clk 0:02:04.1]} 43. a4 {[%clk 0:01:18.6]} 43... Ra2 {[%clk
0:01:59.7]} 44. Ra6 {[%clk 0:01:17.7]} 44... Rd2+ {[%clk 0:01:50.6]} 45. Kc4
{[%clk 0:01:16]} 45... Rc2+ {[%clk 0:01:49.3]} 46. Kb3 {[%clk 0:01:14.4]} 46...
Rc1 {[%clk 0:01:48.2]} 47. Kb4 {[%clk 0:01:01.7]} 47... Rb1+ {[%clk 0:01:45.6]}
48. Ka5 {[%clk 0:01:00.9]} 48... Rb2 {[%clk 0:01:29.3]} 49. Rc6 {[%clk
0:00:59.8]} 49... Ra2 {[%clk 0:01:26.3]} 50. Kb5 {[%clk 0:00:58.8]} 50... Rb2+
{[%clk 0:01:25.6]} 51. Ka6 {[%clk 0:00:58.2]} 51... Rg2 {[%clk 0:01:15.4]} 52.
a5 {[%clk 0:00:56]} 52... Rb2 {[%clk 0:01:03.2]} 53. Ka7 {[%clk 0:00:54.7]}
53... Ra2 {[%clk 0:00:59.1]} 54. a6 {[%clk 0:00:53.8]} 54... Rb2 {[%clk
0:00:56.1]} 55. Rb6 {[%clk 0:00:50.7]} 55... Ra2 {[%clk 0:00:54]} 56. Kb7 {[%clk
0:00:49.6]} 56... Re2 {[%clk 0:00:44.3]} 57. a7 {[%clk 0:00:49.5]} 57... Re7+
{[%clk 0:00:43.1]} 58. Ka6 {[%clk 0:00:48.6]} 58... Re8 {[%clk 0:00:40]} 59. Rb8
{[%clk 0:00:40.4]} 59... Re6+ {[%clk 0:00:38.8]} 60. Kb5 {[%clk 0:00:39.4]}
60... Re5+ {[%clk 0:00:36.7]} 61. Kc4 {[%clk 0:00:38.3]} 61... Ra5 {[%clk
0:00:32.4]} 62. a8=Q {[%clk 0:00:37.2]} 62... Rxa8 {[%clk 0:00:31.1]} 63. Rxa8
{[%clk 0:00:36.6]} 63... Kg6 {[%clk 0:00:30.2]} 64. Ra6+ {[%clk 0:00:35.8]}
64... Kf7 {[%clk 0:00:29.1]} 65. Kd4 {[%clk 0:00:35.7]} 65... Kg8 {[%clk
0:00:29]} 66. Ke4 {[%clk 0:00:34.9]} 66... Kf7 {[%clk 0:00:28.3]} 67. Kf4 {[%clk
0:00:34.8]} 67... Kg8 {[%clk 0:00:27.7]} 68. Kg4 {[%clk 0:00:34.6]} 68... Kf7
{[%clk 0:00:27.6]} 69. Kg5 {[%clk 0:00:34]} 69... Ke7 {[%clk 0:00:24.8]} 70.
Ra7+ {[%clk 0:00:32]} 70... Kf8 {[%clk 0:00:23.8]} 71. Rxh7 {[%clk 0:00:31.9]}
71... Kg8 {[%clk 0:00:23.7]} 72. Ra7 {[%clk 0:00:31.1]} 72... Kf8 {[%clk
0:00:21.9]} 73. h7 {[%clk 0:00:30.7]} 73... Ke8 {[%clk 0:00:21.1]} 74. h8=Q#
{[%clk 0:00:30.4]} 1-0